[Event "FRA-ch Youth U16 2019"]
[Site "Hyeres"]
[Date "2019.04.18"]
[Round "6.2"]
[White "Harutyunyan, Ruben"]
[Black "Tomasi, Albert"]
[Result "1-0"]
[ECO "B68"]
[WhiteElo "2310"]
[BlackElo "2283"]
[Annotator "NA"]
[PlyCount "115"]
[EventDate "2019.04.14"]
[EventType "swiss"]
[EventCountry "FRA"]
[SourceTitle "playchess.com"]
[Source "ChessBase"]
[SourceQuality "1"]
[TimeControl "5400+30"]

1. e4 {[%emt 0:00:00]} c5 {[%emt 0:00:01]} 2. Nf3 {[%emt 0:00:00]} d6 {[%emt 0:00:06]} 3. d4 {[%emt 0:00:00]} cxd4 {[%emt 0:00:08]} 4. Nxd4 {[%emt 0:00:00]} Nf6 {[%emt 0:00:10]} 5. Nc3 {[%emt 0:00:00]} Nc6 {[%emt 0:00:11]} 6. Bg5 {[%emt 0:00:00]} e6 {[%emt 0:00:08]} 7. Qd2 {[%emt 0:00:00]} a6 {[%emt 0:00:18]} 8. O-O-O {[%emt 0:00:03]} Bd7 {[%emt 0:00:11]} 9. f4 {[%emt 0:00:03]} Be7 {[%emt 0:00:08]} 10. Nf3 {[%emt 0:00:03]} b5 {[%emt 0:00:09]} 11. e5 {[%emt 0:00:22]} b4 {[%emt 0:00:12]} 12. exf6 {[%emt 0:00:50]} bxc3 {[%emt 0:00:07]} 13. Qxc3 {[%emt 0:00:04]} gxf6 {[%emt 0:00:06]} 14. Bh4 {[%emt 0:07:53]} d5 {[%emt 0:00:14]} 15. Kb1 {[%emt 0:31:22]} a5 {[%emt 0:19:03]} 16. Bb5 {[%emt 0:08:51]} Rc8 {[%emt 0:01:16]} 17. Qd2 {[%emt 0:01:16]} Nb4 {[%emt 0:11:57]} 18. Bxd7+ {[%emt 0:02:31]} Qxd7 {[%emt 0:00:05]} 19. c3 {[%emt 0:01:59]} Na6 {[%emt 0:00:08]} 20. Rhe1 {[%emt 0:05:05]} Qb7 {[%emt 0:02:23]} 21. Nd4 {[%emt 0:17:05]} Nc5 {[%emt 0:04:45]} 22. Nf5 {[%emt 0:01:19]} exf5 {[%emt 0:02:24]} 23. Bxf6 {[%emt 0:11:37]} Ne4 {[%emt 0:00:19]} 24. Rxe4 {[%emt 0:00:06]} dxe4 {[%emt 0:00:24]} 25. Bxh8 {[%emt 0:00:12]} f6 {[%emt 0:00:09]} 26. Qe2 {[%emt 0:01:29]} Kf7 {[%emt 0:14:40]} 27. Qh5+ {[%emt 0:00:06]} Kg8 {[%emt 0:00:05]} 28. Qxf5 {[%emt 0:00:04]} Kxh8 {[%emt 0:10:13]} 29. Rd7 {[%emt 0:00:04]} Rc7 {[%emt 0:00:05]} 30. Rxc7 {[%emt 0:00:07]} Qxc7 {[%emt 0:00:05]} 31. Qxe4 {[%emt 0:00:03]} Qd7 {[%emt 0:01:07]} 32. Kc2 {[%emt 0:01:11]} Kg7 {[%emt 0:01:09]} 33. g3 {[%emt 0:03:52]} Bc5 {[%emt 0:01:24]} 34. b3 {[%emt 0:02:10]} Qh3 {[%emt 0:03:44]} 35. Qe2 {[%emt 0:01:09]} Kh6 {[%emt 0:05:00]} 36. Kd3 {[%emt 0:01:25]} Qd7+ {[%emt 0:01:12]} 37. Kc2 {[%emt 0:01:43]} Qf5+ {[%emt 0:02:42]} 38. Kc1 {[%emt 0:00:08]} Ba3+ {[%emt 0:01:19]} 39. Kd2 {[%emt 0:00:09]} Qb1 {[%emt 0:02:08]} 40. Ke3 {[%emt 0:00:18]} Bc5+ {[%emt 0:01:56]} 41. Kf3 {[%emt 0:00:57]} Qh1+ {[%emt 0:05:59]} 42. Kg4 {[%emt 0:01:17]} f5+ {[%emt 0:07:24]} 43. Kxf5 {[%emt 0:01:14]} Qd5+ {[%emt 0:02:03]} 44. Qe5 {[%emt 0:00:13]} Qf7+ {[%emt 0:01:20]} 45. Qf6+ {[%emt 0:00:51]} Qxf6+ {[%emt 0:00:07]} 46. Kxf6 {[%emt 0:00:03]} Bg1 {[%emt 0:00:04]} 47. f5 {[%emt 0:00:53]} Bxh2 {[%emt 0:00:06]} 48. g4 {[%emt 0:01:02]} Bf4 {[%emt 0:01:06]} 49. b4 {[%emt 0:00:25]} Bd2 {[%emt 0:02:03]} 50. b5 {[%emt 0:02:04]} Bxc3+ {[%emt 0:00:14]} 51. Ke6 {[%emt 0:00:28]} Kg7 {[%emt 0:02:15]} 52. b6 {[%emt 0:00:06]} Bd4 {[%emt 0:00:05]} 53. b7 {[%emt 0:00:10]} Ba7 {[%emt 0:00:05]} 54. Ke7 {[%emt 0:00:09]} Bc5+ {[%emt 0:00:43]} 55. Ke8 {[%emt 0:00:03]} Bd6 {[%emt 0:00:44]} 56. g5 {[%emt 0:00:02]} h5 {[%emt 0:01:11]} 57. f6+ {[%emt 0:00:27]} Kg6 {[%emt 0:00:08]} 58. f7 {[%emt 0:00:03]} 1-0

[Event "FRA-ch Youth U16 2019"]
[Site "Hyeres"]
[Date "2019.04.18"]
[Round "6.3"]
[White "Christien, Vincent"]
[Black "Degraeve, Remy"]
[Result "0-1"]
[ECO "B37"]
[WhiteElo "2183"]
[BlackElo "2312"]
[Annotator "NA"]
[PlyCount "56"]
[EventDate "2019.04.14"]
[EventType "swiss"]
[EventCountry "FRA"]
[SourceTitle "playchess.com"]
[Source "ChessBase"]
[SourceQuality "1"]
[TimeControl "5400+30"]

1. e4 {[%emt 0:00:00]} c5 {[%emt 0:00:42]} 2. Nf3 {[%emt 0:00:00]} g6 {[%emt 0:00:10]} 3. d4 {[%emt 0:00:37]} cxd4 {[%emt 0:00:05]} 4. Nxd4 {[%emt 0:01:05]} Nc6 {[%emt 0:00:03]} 5. c4 {[%emt 0:00:31]} Nf6 {[%emt 0:00:05]} 6. Nc3 {[%emt 0:00:46]} d6 {[%emt 0:00:04]} 7. Nc2 {[%emt 0:00:47]} Bg7 {[%emt 0:00:04]} 8. Be2 {[%emt 0:00:36]} O-O {[%emt 0:00:04]} 9. O-O {[%emt 0:00:49]} Be6 {[%emt 0:00:02]} 10. Bd2 {[%emt 0:07:56]} a6 {[%emt 0:10:17]} 11. Ne3 {[%emt 0:07:18]} Nd4 {[%emt 0:03:10]} 12. Ned5 {[%emt 0:05:39]} Nxd5 {[%emt 0:07:10]} 13. cxd5 {[%emt 0:10:17]} Nxe2+ {[%emt 0:02:50]} 14. Nxe2 {[%emt 0:09:55]} Bd7 {[%emt 0:01:37]} 15. Bc3 {[%emt 0:00:47]} Bxc3 {[%emt 0:00:07]} 16. Nxc3 {[%emt 0:01:03]} Rc8 {[%emt 0:01:09]} 17. Qb3 {[%emt 0:05:37]} b5 {[%emt 0:03:02]} 18. Rfc1 {[%emt 0:05:37]} Rc4 {[%emt 0:02:35]} 19. a4 {[%emt 0:05:09]} Qb6 {[%emt 0:03:29]} 20. axb5 {[%emt 0:03:49]} axb5 {[%emt 0:00:11]} 21. Ra4 {[%emt 0:04:00]} Rfc8 {[%emt 0:04:02]} 22. Rxc4 {[%emt 0:05:49]} Rxc4 {[%emt 0:00:01]} 23. Re1 {[%emt 0:08:49]} Qc5 {[%emt 0:02:04]} 24. h3 {[%emt 0:03:07]} b4 {[%emt 0:10:15]} 25. Nd1 {[%emt 0:00:03]} Rc1 {[%emt 0:00:46]} 26. Re2 {[%emt 0:03:51]} Qd4 {[%emt 0:00:46]} 27. Re1 {[%emt 0:00:18]} Qd2 {[%emt 0:00:17]} 28. Qe3 {[%emt 0:03:12]} Qxe3 {[%emt 0:00:05]} 0-1

[Event "FRA-ch Youth U16 2019"]
[Site "Hyeres"]
[Date "2019.04.18"]
[Round "6.4"]
[White "Dalaud, Dorian"]
[Black "Maache, Jawad"]
[Result "1-0"]
[ECO "B01"]
[WhiteElo "2167"]
[BlackElo "2261"]
[Annotator "NA"]
[PlyCount "57"]
[EventDate "2019.04.14"]
[EventType "swiss"]
[EventCountry "FRA"]
[SourceTitle "playchess.com"]
[Source "ChessBase"]
[SourceQuality "1"]
[TimeControl "5400+30"]

1. e4 {[%emt 0:02:22]} d5 {[%emt 0:00:00]} 2. exd5 {[%emt 0:00:37]} Qxd5 {[%emt 0:00:00]} 3. Nc3 {[%emt 0:00:28]} Qa5 {[%emt 0:00:00]} 4. d4 {[%emt 0:00:28]} Nf6 {[%emt 0:00:05]} 5. Bc4 {[%emt 0:00:28]} Bg4 {[%emt 0:00:14]} 6. Nge2 {[%emt 0:00:10]} e6 {[%emt 0:04:17]} 7. O-O {[%emt 0:07:59]} Nbd7 {[%emt 0:04:34]} 8. h3 {[%emt 0:01:57]} Bf5 {[%emt 0:01:13]} 9. Ng3 {[%emt 0:03:09]} Bg6 {[%emt 0:02:02]} 10. d5 {[%emt 0:10:57]} e5 {[%emt 0:00:51]} 11. a3 {[%emt 0:03:23]} h5 {[%emt 0:23:36]} 12. Bd2 {[%emt 0:22:47]} c6 {[%emt 0:07:54]} 13. dxc6 {[%emt 0:14:50]} bxc6 {[%emt 0:00:12]} 14. Nd5 {[%emt 0:02:44]} Qd8 {[%emt 0:00:44]} 15. Nxf6+ {[%emt 0:00:20]} Qxf6 {[%emt 0:00:51]} 16. f4 {[%emt 0:01:15]} Qd6 {[%emt 0:26:45]} 17. Qe2 {[%emt 0:03:54]} h4 {[%emt 0:01:19]} 18. f5 {[%emt 0:00:13]} Bh7 {[%emt 0:00:59]} 19. Ne4 {[%emt 0:01:28]} Qd4+ {[%emt 0:05:48]} 20. Kh1 {[%emt 0:00:51]} Be7 {[%emt 0:00:59]} 21. Bc3 {[%emt 0:02:24]} Qb6 {[%emt 0:00:14]} 22. Qh5 {[%emt 0:03:28]} O-O {[%emt 0:00:45]} 23. Ng5 {[%emt 0:09:17]} Bxg5 {[%emt 0:02:20]} 24. Qxg5 {[%emt 0:00:01]} Qd8 {[%emt 0:02:37]} 25. f6 {[%emt 0:01:24]} Nxf6 {[%emt 0:00:42]} 26. Bxe5 {[%emt 0:01:52]} Ne8 {[%emt 0:00:06]} 27. Qh5 {[%emt 0:00:35]} Nf6 {[%emt 0:06:19]} 28. Bxf6 {[%emt 0:01:29]} gxf6 {[%emt 0:00:07]} 29. Rf4 {[%emt 0:01:09]} 1-0

[Event "FRA-ch Youth U16 2019"]
[Site "Hyeres"]
[Date "2019.04.19"]
[Round "7.1"]
[White "Harutyunyan, Ruben"]
[Black "Zachary, Matheo"]
[Result "1-0"]
[ECO "D11"]
[WhiteElo "2310"]
[BlackElo "2281"]
[Annotator "NA"]
[PlyCount "63"]
[EventDate "2019.04.14"]
[EventType "swiss"]
[EventCountry "FRA"]
[SourceTitle "playchess.com"]
[Source "ChessBase"]
[SourceQuality "1"]
[TimeControl "5400+30"]

1. d4 {[%emt 0:00:00]} d5 {[%emt 0:00:00]} 2. c4 {[%emt 0:00:00]} c6 {[%emt 0:00:00]} 3. Nf3 {[%emt 0:00:00]} Nf6 {[%emt 0:00:00]} 4. Qc2 {[%emt 0:00:00]} dxc4 {[%emt 0:00:09]} 5. e4 {[%emt 0:00:00]} Bg4 {[%emt 0:03:11]} 6. Bxc4 {[%emt 0:02:29]} e6 {[%emt 0:03:41]} 7. Be3 {[%emt 0:02:50]} Nbd7 {[%emt 0:06:18]} 8. Nbd2 {[%emt 0:04:11]} Be7 {[%emt 0:03:31]} 9. h3 {[%emt 0:08:57]} Bxf3 {[%emt 0:04:09]} 10. Nxf3 {[%emt 0:00:08]} O-O {[%emt 0:01:15]} 11. O-O {[%emt 0:10:57]} Rc8 {[%emt 0:00:59]} 12. Rfd1 {[%emt 0:12:39]} Qc7 {[%emt 0:12:59]} 13. Bd3 {[%emt 0:00:47]} h6 {[%emt 0:01:35]} 14. Qe2 {[%emt 0:02:13]} c5 {[%emt 0:06:38]} 15. Rac1 {[%emt 0:05:47]} Qb6 {[%emt 0:02:23]} 16. e5 {[%emt 0:12:48]} Nd5 {[%emt 0:01:20]} 17. Bxh6 {[%emt 0:02:38]} gxh6 {[%emt 0:09:20]} 18. Qe4 {[%emt 0:00:07]} f5 {[%emt 0:08:50]} 19. exf6 {[%emt 0:00:07]} N7xf6 {[%emt 0:01:01]} 20. Qg6+ {[%emt 0:00:09]} Kh8 {[%emt 0:00:04]} 21. Qxh6+ {[%emt 0:00:05]} Kg8 {[%emt 0:00:02]} 22. Qg6+ {[%emt 0:11:52]} Kh8 {[%emt 0:00:02]} 23. Ng5 {[%emt 0:01:12]} Rc6 {[%emt 0:05:33]} 24. Qh6+ {[%emt 0:03:51]} Kg8 {[%emt 0:00:04]} 25. dxc5 {[%emt 0:03:20]} Bxc5 {[%emt 0:04:51]} 26. Bh7+ {[%emt 0:00:35]} Kh8 {[%emt 0:00:01]} 27. Rxc5 {[%emt 0:03:05]} Qxc5 {[%emt 0:01:45]} 28. Bf5+ {[%emt 0:01:01]} Kg8 {[%emt 0:00:02]} 29. Bxe6+ {[%emt 0:00:31]} Rxe6 {[%emt 0:00:03]} 30. Nxe6 {[%emt 0:00:06]} Qe7 {[%emt 0:00:09]} 31. Nxf8 {[%emt 0:03:19]} Qxf8 {[%emt 0:00:05]} 32. Qg5+ {[%emt 0:00:13]} 1-0

[Event "FRA-ch Youth U16 2019"]
[Site "Hyeres"]
[Date "2019.04.19"]
[Round "7.3"]
[White "Defromont, Benjamin"]
[Black "Lary, Damien"]
[Result "1-0"]
[ECO "C15"]
[WhiteElo "2200"]
[BlackElo "2067"]
[Annotator "NA"]
[PlyCount "190"]
[EventDate "2019.04.14"]
[EventType "swiss"]
[EventCountry "FRA"]
[SourceTitle "playchess.com"]
[Source "ChessBase"]
[SourceQuality "1"]
[TimeControl "5400+30"]

1. e4 {[%emt 0:00:00]} e6 {[%emt 0:00:00]} 2. d4 {[%emt 0:00:00]} d5 {[%emt 0:00:00]} 3. Nc3 {[%emt 0:00:00]} Bb4 {[%emt 0:00:00]} 4. Bd3 {[%emt 0:00:00]} Nc6 {[%emt 0:03:19]} 5. Nge2 {[%emt 0:00:47]} dxe4 {[%emt 0:00:13]} 6. Bxe4 {[%emt 0:00:04]} Nf6 {[%emt 0:00:09]} 7. Bf3 {[%emt 0:00:02]} e5 {[%emt 0:00:27]} 8. Bxc6+ {[%emt 0:03:39]} bxc6 {[%emt 0:00:46]} 9. O-O {[%emt 0:00:19]} Bg4 {[%emt 0:32:35]} 10. dxe5 {[%emt 0:06:06]} Qxd1 {[%emt 0:01:01]} 11. Rxd1 {[%emt 0:00:04]} Bxc3 {[%emt 0:00:50]} 12. bxc3 {[%emt 0:00:23]} Bxe2 {[%emt 0:00:40]} 13. Re1 {[%emt 0:00:14]} Nd5 {[%emt 0:00:11]} 14. Rxe2 {[%emt 0:00:08]} Nxc3 {[%emt 0:00:05]} 15. Re1 {[%emt 0:04:11]} O-O {[%emt 0:00:55]} 16. Bb2 {[%emt 0:07:07]} Nd5 {[%emt 0:00:25]} 17. e6 {[%emt 0:06:00]} Rfe8 {[%emt 0:01:20]} 18. exf7+ {[%emt 0:01:11]} Kxf7 {[%emt 0:00:01]} 19. Bd4 {[%emt 0:05:45]} a5 {[%emt 0:11:27]} 20. a3 {[%emt 0:06:27]} a4 {[%emt 0:01:54]} 21. Kf1 {[%emt 0:01:57]} Nb6 {[%emt 0:00:09]} 22. Bc5 {[%emt 0:18:11]} Nc4 {[%emt 0:00:20]} 23. Bb4 {[%emt 0:00:40]} Rad8 {[%emt 0:13:52]} 24. Rxe8 {[%emt 0:05:25]} Rxe8 {[%emt 0:00:12]} 25. Rd1 {[%emt 0:00:16]} Nb6 {[%emt 0:00:06]} 26. Rd4 {[%emt 0:04:10]} Re5 {[%emt 0:03:14]} 27. Rg4 {[%emt 0:02:47]} g6 {[%emt 0:00:23]} 28. Rh4 {[%emt 0:00:30]} h5 {[%emt 0:03:06]} 29. Rf4+ {[%emt 0:03:24]} Ke6 {[%emt 0:00:11]} 30. Rf8 {[%emt 0:00:43]} c5 {[%emt 0:10:18]} 31. Bc3 {[%emt 0:06:37]} Rf5 {[%emt 0:00:59]} 32. Rg8 {[%emt 0:02:22]} g5 {[%emt 0:00:31]} 33. Bd2 {[%emt 0:03:06]} g4 {[%emt 0:00:19]} 34. Ke2 {[%emt 0:03:56]} Nc4 {[%emt 0:05:42]} 35. Bc1 {[%emt 0:00:08]} Nd6 {[%emt 0:00:42]} 36. Ra8 {[%emt 0:02:35]} Nb5 {[%emt 0:00:35]} 37. c4 {[%emt 0:01:55]} Nc3+ {[%emt 0:02:10]} 38. Ke1 {[%emt 0:01:59]} Kd7 {[%emt 0:00:42]} 39. Be3 {[%emt 0:01:29]} Kc6 {[%emt 0:01:54]} 40. Rb8 {[%emt 0:00:49]} Re5 {[%emt 0:00:51]} 41. Kd2 {[%emt 0:00:28]} Ne4+ {[%emt 0:01:10]} 42. Kd3 {[%emt 0:00:09]} Nf6 {[%emt 0:03:19]} 43. Ra8 {[%emt 0:00:12]} Nd7 {[%emt 0:00:26]} 44. Rxa4 {[%emt 0:00:16]} Re8 {[%emt 0:00:18]} 45. Ra6+ {[%emt 0:00:21]} Nb6 {[%emt 0:00:18]} 46. Ra5 {[%emt 0:00:12]} Nd7 {[%emt 0:00:42]} 47. a4 {[%emt 0:01:14]} Rb8 {[%emt 0:03:24]} 48. Rb5 {[%emt 0:01:18]} Ra8 {[%emt 0:00:50]} 49. a5 {[%emt 0:00:12]} Re8 {[%emt 0:00:24]} 50. Rb1 {[%emt 0:02:05]} Ra8 {[%emt 0:00:23]} 51. Bd2 {[%emt 0:00:12]} Ne5+ {[%emt 0:00:31]} 52. Kc3 {[%emt 0:01:20]} Rxa5 {[%emt 0:00:09]} 53. Kb3 {[%emt 0:00:11]} Ra8 {[%emt 0:00:05]} 54. Re1 {[%emt 0:00:12]} Nd3 {[%emt 0:00:36]} 55. Re6+ {[%emt 0:00:30]} Kd7 {[%emt 0:00:46]} 56. Rh6 {[%emt 0:01:45]} Nxf2 {[%emt 0:00:18]} 57. Rxh5 {[%emt 0:00:07]} Rb8+ {[%emt 0:00:26]} 58. Kc2 {[%emt 0:00:20]} Ne4 {[%emt 0:01:03]} 59. Be3 {[%emt 0:00:12]} Rb4 {[%emt 0:00:39]} 60. Kd3 {[%emt 0:03:18]} Nd6 61. Bxc5 {[%emt 0:00:00]} Rb2 {[%emt 0:00:19]} 62. g3 {[%emt 0:00:00]} Rb3+ {[%emt 0:01:40]} 63. Kd4 {[%emt 0:00:00]} Rb2 {[%emt 0:00:23]} 64. Ba3 {[%emt 0:01:21]} Rd2+ {[%emt 0:00:14]} 65. Kc3 {[%emt 0:00:24]} Ne4+ {[%emt 0:00:09]} 66. Kb4 {[%emt 0:00:31]} c5+ {[%emt 0:00:33]} 67. Kb5 {[%emt 0:00:24]} Kd6 {[%emt 0:01:04]} 68. Rh6+ {[%emt 0:00:15]} Ke5 {[%emt 0:00:27]} 69. Bxc5 {[%emt 0:00:58]} Rb2+ {[%emt 0:00:19]} 70. Kc6 {[%emt 0:00:06]} Rc2 {[%emt 0:00:31]} 71. Rh5+ {[%emt 0:00:32]} Ke6 {[%emt 0:00:01]} 72. Kb5 {[%emt 0:00:43]} Rb2+ {[%emt 0:00:06]} 73. Bb4 {[%emt 0:00:19]} Nd6+ {[%emt 0:00:18]} 74. Kc5 {[%emt 0:00:17]} Ne4+ {[%emt 0:00:05]} 75. Kd4 {[%emt 0:00:32]} Rxb4 {[%emt 0:00:33]} 76. Re5+ {[%emt 0:00:07]} Kf6 {[%emt 0:00:05]} 77. Rxe4 {[%emt 0:00:05]} Kf5 {[%emt 0:00:37]} 78. Re2 {[%emt 0:00:06]} Rb1 {[%emt 0:01:08]} 79. c5 {[%emt 0:00:09]} Rd1+ {[%emt 0:00:17]} 80. Kc4 {[%emt 0:00:04]} Rc1+ {[%emt 0:00:05]} 81. Kd5 {[%emt 0:00:12]} Rd1+ {[%emt 0:00:06]} 82. Kc6 {[%emt 0:00:05]} Rc1 {[%emt 0:00:16]} 83. Kd6 {[%emt 0:00:03]} Rd1+ {[%emt 0:00:05]} 84. Kc7 {[%emt 0:00:05]} Rc1 {[%emt 0:00:09]} 85. c6 {[%emt 0:00:03]} Kf6 {[%emt 0:00:25]} 86. Kd7 {[%emt 0:00:20]} Rd1+ {[%emt 0:00:06]} 87. Kc8 {[%emt 0:00:05]} Rc1 {[%emt 0:00:07]} 88. c7 {[%emt 0:00:04]} Kf5 {[%emt 0:00:14]} 89. Re7 {[%emt 0:00:21]} Kf6 {[%emt 0:00:14]} 90. Kd8 {[%emt 0:00:29]} Rc2 {[%emt 0:01:06]} 91. Rd7 {[%emt 0:00:20]} Rxh2 {[%emt 0:01:05]} 92. c8=Q {[%emt 0:00:11]} Rh8+ {[%emt 0:00:04]} 93. Kc7 {[%emt 0:00:04]} Rxc8+ {[%emt 0:00:05]} 94. Kxc8 {[%emt 0:00:03]} Ke5 {[%emt 0:00:18]} 95. Rf7 {[%emt 0:00:07]} Ke4 {[%emt 0:05:55]} 1-0

[Event "FRA-ch Youth U16 2019"]
[Site "Hyeres"]
[Date "2019.04.19"]
[Round "7.4"]
[White "Robert, Mathias"]
[Black "Popov, Konstantin"]
[Result "0-1"]
[ECO "B85"]
[WhiteElo "2168"]
[BlackElo "2328"]
[Annotator "NA"]
[PlyCount "82"]
[EventDate "2019.04.14"]
[EventType "swiss"]
[EventCountry "FRA"]
[SourceTitle "playchess.com"]
[Source "ChessBase"]
[SourceQuality "1"]
[TimeControl "5400+30"]

1. e4 {[%emt 0:00:00]} c5 {[%emt 0:00:00]} 2. Nf3 {[%emt 0:00:00]} d6 {[%emt 0:00:00]} 3. d4 {[%emt 0:00:00]} Nf6 {[%emt 0:00:00]} 4. Nc3 {[%emt 0:00:00]} cxd4 {[%emt 0:00:13]} 5. Nxd4 {[%emt 0:00:00]} a6 {[%emt 0:00:13]} 6. a4 {[%emt 0:00:00]} e6 {[%emt 0:00:31]} 7. Be2 {[%emt 0:00:54]} Qc7 {[%emt 0:01:25]} 8. O-O {[%emt 0:01:52]} Be7 {[%emt 0:00:08]} 9. Be3 {[%emt 0:00:19]} O-O {[%emt 0:00:57]} 10. f4 {[%emt 0:00:14]} Nc6 {[%emt 0:00:28]} 11. Nb3 {[%emt 0:05:11]} b6 {[%emt 0:01:19]} 12. Qe1 {[%emt 0:01:39]} Bb7 {[%emt 0:14:00]} 13. Qf2 {[%emt 0:07:10]} Nd7 {[%emt 0:00:19]} 14. Rad1 {[%emt 0:02:32]} Nc5 {[%emt 0:09:03]} 15. Nxc5 {[%emt 0:13:23]} dxc5 {[%emt 0:01:52]} 16. Kh1 {[%emt 0:22:21]} Rad8 {[%emt 0:03:13]} 17. Bd3 {[%emt 0:01:40]} Nd4 {[%emt 0:09:37]} 18. Ne2 {[%emt 0:05:21]} Nxe2 {[%emt 0:05:44]} 19. Qxe2 {[%emt 0:00:06]} b5 {[%emt 0:00:16]} 20. axb5 {[%emt 0:02:24]} axb5 {[%emt 0:00:11]} 21. c3 {[%emt 0:00:23]} Qc6 {[%emt 0:11:42]} 22. Rde1 {[%emt 0:14:21]} c4 {[%emt 0:13:06]} 23. Bc2 {[%emt 0:00:05]} f5 {[%emt 0:04:32]} 24. exf5 {[%emt 0:00:12]} exf5 {[%emt 0:00:12]} 25. Bd4 {[%emt 0:03:37]} Bf6 {[%emt 0:00:58]} 26. Bxf5 {[%emt 0:03:40]} Bxd4 {[%emt 0:00:58]} 27. Be6+ {[%emt 0:00:05]} Kh8 {[%emt 0:00:11]} 28. cxd4 {[%emt 0:00:05]} Rxd4 {[%emt 0:00:43]} 29. f5 {[%emt 0:02:23]} Rfd8 {[%emt 0:12:36]} 30. f6 {[%emt 0:06:18]} gxf6 {[%emt 0:00:43]} 31. Qf2 {[%emt 0:00:58]} Rf4 {[%emt 0:00:55]} 32. Qe2 {[%emt 0:02:59]} Re8 {[%emt 0:05:49]} 33. Rxf4 {[%emt 0:01:12]} Rxe6 {[%emt 0:00:02]} 34. Rf2 {[%emt 0:00:05]} Rxe2 {[%emt 0:00:27]} 35. Rfxe2 {[%emt 0:00:04]} Kg7 {[%emt 0:00:15]} 36. h4 {[%emt 0:00:20]} Kg6 {[%emt 0:05:22]} 37. Kh2 b4 {[%emt 0:00:00]} 38. Rf2 {[%emt 0:00:33]} Qd6+ {[%emt 0:00:00]} 39. g3 {[%emt 0:00:36]} Qd4 {[%emt 0:00:00]} 40. Rfe2 {[%emt 0:00:28]} c3 {[%emt 0:00:00]} 41. bxc3 {[%emt 0:00:03]} bxc3 {[%emt 0:02:30]} 0-1

[Event "FRA-ch Youth U16 2019"]
[Site "Hyeres"]
[Date "2019.04.20"]
[Round "8.1"]
[White "Degraeve, Remy"]
[Black "Harutyunyan, Ruben"]
[Result "1-0"]
[ECO "A06"]
[WhiteElo "2312"]
[BlackElo "2310"]
[Annotator "NA"]
[PlyCount "133"]
[EventDate "2019.04.14"]
[EventType "swiss"]
[EventCountry "FRA"]
[SourceTitle "playchess.com"]
[Source "ChessBase"]
[SourceQuality "1"]
[TimeControl "5400+30"]

1. b3 {[%emt 0:00:00]} d5 {[%emt 0:00:00]} 2. Nf3 {[%emt 0:00:00]} Bg4 {[%emt 0:00:00]} 3. e3 {[%emt 0:00:00]} c6 {[%emt 0:00:00]} 4. Bb2 {[%emt 0:00:00]} e6 {[%emt 0:00:06]} 5. h3 {[%emt 0:00:00]} Bh5 {[%emt 0:00:13]} 6. d3 {[%emt 0:00:03]} Nd7 {[%emt 0:00:09]} 7. Nbd2 {[%emt 0:00:19]} a5 {[%emt 0:01:17]} 8. a4 {[%emt 0:01:00]} f6 {[%emt 0:17:05]} 9. Be2 {[%emt 0:03:12]} Bf7 {[%emt 0:01:14]} 10. e4 {[%emt 0:00:26]} Bd6 {[%emt 0:02:59]} 11. d4 {[%emt 0:07:07]} Ne7 {[%emt 0:05:49]} 12. Bd3 {[%emt 0:00:57]} Ng6 {[%emt 0:07:46]} 13. g3 {[%emt 0:00:09]} e5 {[%emt 0:05:31]} 14. O-O {[%emt 0:10:17]} O-O {[%emt 0:05:52]} 15. Re1 {[%emt 0:03:09]} Qc7 {[%emt 0:04:06]} 16. Bf1 {[%emt 0:03:07]} Rae8 {[%emt 0:09:20]} 17. Bg2 {[%emt 0:01:44]} Bb4 {[%emt 0:07:18]} 18. c3 {[%emt 0:05:21]} Bd6 {[%emt 0:00:00]} 19. Qc2 {[%emt 0:00:18]} Qb6 {[%emt 0:07:42]} 20. dxe5 {[%emt 0:04:49]} Bxe5 {[%emt 0:02:55]} 21. Nxe5 {[%emt 0:02:12]} fxe5 {[%emt 0:03:56]} 22. Ba3 {[%emt 0:07:10]} Ne7 {[%emt 0:00:37]} 23. Qd3 {[%emt 0:03:23]} Be6 {[%emt 0:05:23]} 24. Qe3 {[%emt 0:01:28]} Qxe3 {[%emt 0:08:33]} 25. Rxe3 {[%emt 0:01:55]} Rf7 {[%emt 0:01:03]} 26. Rb1 {[%emt 0:01:20]} h6 {[%emt 0:00:30]} 27. Bd6 {[%emt 0:00:30]} Nc8 {[%emt 0:00:30]} 28. Ba3 {[%emt 0:00:30]} Ncb6 {[%emt 0:00:30]} 29. Rbe1 {[%emt 0:00:30]} g5 {[%emt 0:00:30]} 30. Rd3 {[%emt 0:00:30]} Rc8 {[%emt 0:00:30]} 31. Bd6 {[%emt 0:00:30]} Kg7 {[%emt 0:00:30]} 32. exd5 {[%emt 0:00:30]} Bxd5 {[%emt 0:00:30]} 33. Bxe5+ {[%emt 0:00:30]} Nxe5 {[%emt 0:00:30]} 34. Rxe5 {[%emt 0:00:30]} Nd7 {[%emt 0:00:30]} 35. Re2 {[%emt 0:00:30]} Bxg2 {[%emt 0:00:30]} 36. Kxg2 {[%emt 0:00:30]} Nc5 {[%emt 0:00:30]} 37. Rd4 {[%emt 0:00:30]} Rcf8 {[%emt 0:00:30]} 38. h4 {[%emt 0:00:30]} Kh7 {[%emt 0:00:30]} 39. f3 {[%emt 0:00:30]} Kg7 {[%emt 0:00:30]} 40. Rg4 {[%emt 0:00:30]} Rf5 {[%emt 0:00:30]} 41. f4 {[%emt 0:00:30]} Kg6 {[%emt 0:00:30]} 42. hxg5 {[%emt 0:00:30]} hxg5 {[%emt 0:00:30]} 43. Nf3 {[%emt 0:00:30]} Rd8 {[%emt 0:00:30]} 44. Re3 {[%emt 0:00:30]} Kh5 {[%emt 0:00:30]} 45. Rxg5+ {[%emt 0:00:30]} Rxg5 {[%emt 0:00:30]} 46. Nxg5 {[%emt 0:00:30]} Nxb3 {[%emt 0:00:30]} 47. Kh3 {[%emt 0:00:30]} Nc5 {[%emt 0:00:30]} 48. g4+ {[%emt 0:00:30]} Kg6 {[%emt 0:00:30]} 49. Ne6 {[%emt 0:00:30]} Rd3 {[%emt 0:00:30]} 50. Rxd3 {[%emt 0:00:30]} Nxd3 {[%emt 0:00:30]} 51. f5+ {[%emt 0:00:30]} Kf6 {[%emt 0:00:30]} 52. Nd4 {[%emt 0:00:30]} Kg5 {[%emt 0:00:30]} 53. Kg3 {[%emt 0:00:30]} Nb2 {[%emt 0:00:30]} 54. Nf3+ {[%emt 0:00:30]} Kf6 {[%emt 0:00:30]} 55. Kf4 {[%emt 0:00:30]} Nd3+ {[%emt 0:00:30]} 56. Ke3 {[%emt 0:00:30]} Nb2 {[%emt 0:00:30]} 57. Ke4 {[%emt 0:00:30]} Nxa4 {[%emt 0:00:30]} 58. g5+ {[%emt 0:00:30]} Kf7 {[%emt 0:00:30]} 59. f6 {[%emt 0:00:30]} Nxc3+ {[%emt 0:00:30]} 60. Kf5 {[%emt 0:00:30]} Ne2 {[%emt 0:00:30]} 61. g6+ {[%emt 0:00:30]} Kg8 {[%emt 0:00:30]} 62. Ng5 {[%emt 0:41:05]} Ng3+ {[%emt 0:03:35]} 63. Ke6 {[%emt 0:00:30]} a4 {[%emt 0:00:30]} 64. f7+ {[%emt 0:00:30]} Kg7 {[%emt 0:00:30]} 65. Nh7 {[%emt 0:00:30]} Kxg6 {[%emt 0:00:30]} 66. f8=Q {[%emt 0:00:30]} Kxh7 {[%emt 0:00:30]} 67. Kf7 {[%emt 0:00:00]} 1-0